[Event "*** Titled Tuesday 3|2 Blitz"]
[Site "Chess.com"]
[Date "2016.09.06"]
[Round "1"]
[White "putinwarrior"]
[Black "OparinGrigoriy"]
[Result "0-1"]
[WhiteElo "2332"]
[BlackElo "2608"]
[TimeControl "180+2"]
[EndTime "11:03:11 PDT"]
[Termination "OparinGrigoriy won by resignation"]

1. e4 {[%clk 0:02:59]} 1... c5 {[%clk 0:03:00.9]} 2. c3 {[%clk 0:03:00.1]} 2...
Nf6 {[%clk 0:03:01.6]} 3. e5 {[%clk 0:03:01.2]} 3... Nd5 {[%clk 0:03:03.3]} 4.
Nf3 {[%clk 0:02:59.8]} 4... e6 {[%clk 0:03:04.8]} 5. g3 {[%clk 0:03:00.9]} 5...
d6 {[%clk 0:03:05.8]} 6. exd6 {[%clk 0:03:02.6]} 6... Bxd6 {[%clk 0:03:07.7]} 7.
Bg2 {[%clk 0:03:04.3]} 7... O-O {[%clk 0:03:09.4]} 8. O-O {[%clk 0:03:06.1]}
8... Nc6 {[%clk 0:03:11.1]} 9. d3 {[%clk 0:03:07.6]} 9... b6 {[%clk 0:03:12]}
10. a4 {[%clk 0:03:09.2]} 10... Bb7 {[%clk 0:03:13.3]} 11. Na3 {[%clk 0:03:10]}
11... Bc7 {[%clk 0:03:14.9]} 12. Re1 {[%clk 0:03:09.9]} 12... a6 {[%clk
0:03:15.9]} 13. Qc2 {[%clk 0:03:03.2]} 13... Nde7 {[%clk 0:03:15.4]} 14. h4
{[%clk 0:02:57.5]} 14... h6 {[%clk 0:03:15.7]} 15. Bf4 {[%clk 0:02:54]} 15...
Bxf4 {[%clk 0:03:16.2]} 16. gxf4 {[%clk 0:02:54.5]} 16... Nf5 {[%clk 0:03:17.4]}
17. h5 {[%clk 0:02:52]} 17... Nce7 {[%clk 0:03:16.5]} 18. Rad1 {[%clk
0:02:49.7]} 18... Bxf3 {[%clk 0:03:16.9]} 19. Bxf3 {[%clk 0:02:50.3]} 19... Nd5
{[%clk 0:03:18.8]} 20. Re5 {[%clk 0:02:38.7]} 20... Nxf4 {[%clk 0:03:16.1]} 21.
Bxa8 {[%clk 0:02:38.9]} 21... Qg5+ {[%clk 0:03:17.7]} 22. Kf1 {[%clk 0:02:31.6]}
22... Rxa8 {[%clk 0:03:19.3]} 23. Ke1 {[%clk 0:02:33.2]} 23... Rd8 {[%clk
0:03:16]} 24. Nc4 {[%clk 0:02:29.4]} 24... b5 {[%clk 0:02:41.1]} 25. axb5 {[%clk
0:02:25.7]} 25... axb5 {[%clk 0:02:43]} 26. Ne3 {[%clk 0:02:22.5]} 26... Nxe3
{[%clk 0:02:43.3]} 27. Rxe3 {[%clk 0:02:22.3]} 27... Qg1+ {[%clk 0:02:42.6]} 28.
Kd2 {[%clk 0:02:21.8]} 28... Qxf2+ {[%clk 0:02:44.2]} 0-1

[Event "*** Titled Tuesday 3|2 Blitz"]
[Site "Chess.com"]
[Date "2016.09.06"]
[Round "1"]
[White "igorkovalenko"]
[Black "Usurpov"]
[Result "1-0"]
[WhiteElo "2599"]
[BlackElo "2330"]
[TimeControl "180+2"]
[EndTime "11:03:43 PDT"]
[Termination "igorkovalenko won by resignation"]

1. e4 {[%clk 0:02:57.4]} 1... c5 {[%clk 0:02:59.2]} 2. Nf3 {[%clk 0:02:56.7]}
2... Nc6 {[%clk 0:02:59.2]} 3. Bb5 {[%clk 0:02:57.1]} 3... e6 {[%clk 0:03:00.4]}
4. Bxc6 {[%clk 0:02:57.5]} 4... bxc6 {[%clk 0:03:02.3]} 5. Qe2 {[%clk
0:02:58.7]} 5... Ne7 {[%clk 0:03:03.5]} 6. b3 {[%clk 0:02:59.5]} 6... Ng6 {[%clk
0:03:04.3]} 7. Bb2 {[%clk 0:03:01]} 7... f6 {[%clk 0:02:59.4]} 8. g3 {[%clk
0:03:02.1]} 8... e5 {[%clk 0:02:54.3]} 9. d3 {[%clk 0:03:02.9]} 9... Be7 {[%clk
0:02:47.9]} 10. h4 {[%clk 0:02:58.5]} 10... d5 {[%clk 0:02:41.5]} 11. h5 {[%clk
0:02:57.1]} 11... Nf8 {[%clk 0:02:42.4]} 12. Nh4 {[%clk 0:02:58]} 12... Ne6
{[%clk 0:02:39.6]} 13. Nf5 {[%clk 0:02:52]} 13... O-O {[%clk 0:01:57.5]} 14. Nd2
{[%clk 0:02:52.6]} 14... a5 {[%clk 0:01:50.7]} 15. Qg4 {[%clk 0:02:50.6]} 15...
Kh8 {[%clk 0:01:45.8]} 16. Nf3 {[%clk 0:02:49.9]} 16... Rf7 {[%clk 0:01:37.7]}
17. Kf1 {[%clk 0:02:50.2]} 17... a4 {[%clk 0:01:38.1]} 18. Kg2 {[%clk
0:02:51.2]} 18... Bd7 {[%clk 0:01:33.2]} 19. N3h4 {[%clk 0:02:51.4]} 19... Bf8
{[%clk 0:01:27.2]} 20. Ng6+ {[%clk 0:02:46.4]} 20... Kg8 {[%clk 0:01:27.2]} 21.
Nh6+ {[%clk 0:02:46.7]} 21... gxh6 {[%clk 0:01:22.6]} 22. Ne7+ {[%clk
0:02:47.7]} 1-0

[Event "*** Titled Tuesday 3|2 Blitz"]
[Site "Chess.com"]
[Date "2016.09.06"]
[Round "1"]
[White "jb2mix"]
[Black "CraiggoryC"]
[Result "1-0"]
[WhiteElo "2429"]
[BlackElo "2025"]
[TimeControl "180+2"]
[EndTime "11:04:14 PDT"]
[Termination "jb2mix won by resignation"]

1. e4 {[%clk 0:03:02]} 1... e6 {[%clk 0:03:00.9]} 2. d4 {[%clk 0:03:02.8]} 2...
d5 {[%clk 0:03:01.8]} 3. Nd2 {[%clk 0:03:04.4]} 3... Be7 {[%clk 0:03:01.9]} 4.
e5 {[%clk 0:03:00.3]} 4... c5 {[%clk 0:03:02.8]} 5. c3 {[%clk 0:02:59.9]} 5...
Nc6 {[%clk 0:03:04.2]} 6. Bd3 {[%clk 0:02:59.3]} 6... cxd4 {[%clk 0:03:00.5]} 7.
cxd4 {[%clk 0:03:00.1]} 7... Nh6 {[%clk 0:02:59.1]} 8. Ne2 {[%clk 0:02:57.3]}
8... O-O {[%clk 0:02:54.9]} 9. O-O {[%clk 0:02:56.8]} 9... Nf5 {[%clk
0:02:56.1]} 10. Nf3 {[%clk 0:02:54.9]} 10... Kh8 {[%clk 0:02:50.7]} 11. a3
{[%clk 0:02:53.2]} 11... g5 {[%clk 0:02:47.9]} 12. h3 {[%clk 0:02:29.4]} 12...
a5 {[%clk 0:02:43.8]} 13. Bb1 {[%clk 0:02:16.1]} 13... Rg8 {[%clk 0:02:29.8]}
14. g4 {[%clk 0:02:11.1]} 14... Nh4 {[%clk 0:02:24.7]} 15. Nxh4 {[%clk
0:02:09.8]} 15... gxh4 {[%clk 0:02:25.9]} 16. Qd3 {[%clk 0:02:10.6]} 16... Rg7
{[%clk 0:02:26.6]} 17. Bh6 {[%clk 0:02:10.8]} 17... Qg8 {[%clk 0:02:20.5]} 18.
Bxg7+ {[%clk 0:02:08.7]} 18... Qxg7 {[%clk 0:02:22.4]} 19. f4 {[%clk 0:01:58.6]}
19... f5 {[%clk 0:02:12.2]} 20. Kh1 {[%clk 0:01:54.7]} 20... b6 {[%clk
0:01:56.2]} 21. gxf5 {[%clk 0:01:48]} 21... Ba6 {[%clk 0:01:47.8]} 22. f6 {[%clk
0:01:47]} 22... Bxf6 {[%clk 0:01:43.8]} 23. exf6 {[%clk 0:01:46.3]} 1-0

[Event "*** Titled Tuesday 3|2 Blitz"]
[Site "Chess.com"]
[Date "2016.09.06"]
[Round "1"]
[White "Kawhi_Leonard2"]
[Black "Maitreia"]
[Result "0-1"]
[WhiteElo "1992"]
[BlackElo "2415"]
[TimeControl "180+2"]
[EndTime "11:05:03 PDT"]
[Termination "Maitreia won by resignation"]

1. e4 {[%clk 0:02:59.6]} 1... c5 {[%clk 0:03:00.3]} 2. Nf3 {[%clk 0:03:00.3]}
2... d6 {[%clk 0:03:01.3]} 3. d4 {[%clk 0:03:01.5]} 3... cxd4 {[%clk 0:03:03.2]}
4. Nxd4 {[%clk 0:03:03.1]} 4... Nf6 {[%clk 0:03:04.8]} 5. Nc3 {[%clk 0:03:03.8]}
5... g6 {[%clk 0:03:06.3]} 6. Be3 {[%clk 0:03:04.2]} 6... Bg7 {[%clk 0:03:07.7]}
7. f3 {[%clk 0:03:04.7]} 7... O-O {[%clk 0:03:09.1]} 8. Qd2 {[%clk 0:03:06.2]}
8... Nc6 {[%clk 0:03:02.3]} 9. O-O-O {[%clk 0:03:07.3]} 9... Bd7 {[%clk
0:03:02.8]} 10. g4 {[%clk 0:03:06.3]} 10... Rc8 {[%clk 0:03:02]} 11. h4 {[%clk
0:03:07.1]} 11... h5 {[%clk 0:03:03.2]} 12. g5 {[%clk 0:03:01]} 12... Ne8 {[%clk
0:02:58]} 13. f4 {[%clk 0:02:53.7]} 13... Nc7 {[%clk 0:02:51.4]} 14. Bh3 {[%clk
0:02:46.1]} 14... Ne6 {[%clk 0:02:40.6]} 15. Nde2 {[%clk 0:02:22.7]} 15... b6
{[%clk 0:02:34.5]} 16. f5 {[%clk 0:02:15.7]} 16... Nc5 {[%clk 0:02:34.9]} 17.
fxg6 {[%clk 0:02:02.3]} 17... fxg6 {[%clk 0:02:36.8]} 18. Kb1 {[%clk 0:01:59]}
18... Bxh3 {[%clk 0:02:36]} 19. Rxh3 {[%clk 0:01:58.1]} 19... Kh7 {[%clk
0:02:36.8]} 20. Nf4 {[%clk 0:01:33.1]} 20... Qd7 {[%clk 0:02:38.1]} 21. Rhh1
{[%clk 0:01:28.8]} 21... Ne5 {[%clk 0:02:37]} 22. Qe2 {[%clk 0:01:23.5]} 22...
Ng4 {[%clk 0:02:29.4]} 23. Bd4 {[%clk 0:01:23.2]} 23... Rxf4 {[%clk 0:02:24.3]}
24. Bxg7 {[%clk 0:01:19]} 24... Kxg7 {[%clk 0:02:26.2]} 25. e5 {[%clk
0:01:13.2]} 25... Nxe5 {[%clk 0:02:27.3]} 26. Nd5 {[%clk 0:01:13.4]} 26... Rf7
{[%clk 0:02:19.5]} 27. Rhe1 {[%clk 0:01:09.7]} 27... Qg4 {[%clk 0:02:15.2]} 0-1

[Event "*** Titled Tuesday 3|2 Blitz"]
[Site "Chess.com"]
[Date "2016.09.06"]
[Round "1"]
[White "goingin33"]
[Black "Mischuk_D"]
[Result "0-1"]
[WhiteElo "2132"]
[BlackElo "2489"]
[TimeControl "180+2"]
[EndTime "11:05:15 PDT"]
[Termination "Mischuk_D won by resignation"]

1. e4 {[%clk 0:03:01.9]} 1... e5 {[%clk 0:03:00.5]} 2. Nf3 {[%clk 0:02:56.4]}
2... Nc6 {[%clk 0:03:01.6]} 3. Nc3 {[%clk 0:02:56.8]} 3... g6 {[%clk 0:03:00.7]}
4. d4 {[%clk 0:02:56.5]} 4... exd4 {[%clk 0:03:01.8]} 5. Nxd4 {[%clk 0:02:58.4]}
5... Bg7 {[%clk 0:03:03.1]} 6. Be3 {[%clk 0:02:59.6]} 6... Nf6 {[%clk
0:03:03.8]} 7. f3 {[%clk 0:02:54.4]} 7... O-O {[%clk 0:03:04.1]} 8. Qd2 {[%clk
0:02:55.5]} 8... d5 {[%clk 0:03:04.8]} 9. Nxc6 {[%clk 0:02:42.8]} 9... bxc6
{[%clk 0:03:05.8]} 10. O-O-O {[%clk 0:02:38.6]} 10... Be6 {[%clk 0:03:02.3]} 11.
e5 {[%clk 0:02:33.8]} 11... Nd7 {[%clk 0:03:03.2]} 12. f4 {[%clk 0:02:35.1]}
12... Nb6 {[%clk 0:02:54.7]} 13. Bc5 {[%clk 0:02:30.4]} 13... Re8 {[%clk
0:02:55.1]} 14. h4 {[%clk 0:02:24.8]} 14... h5 {[%clk 0:02:54.1]} 15. Be2 {[%clk
0:02:23.8]} 15... Qd7 {[%clk 0:02:41.5]} 16. Bd3 {[%clk 0:01:48.3]} 16... Bg4
{[%clk 0:02:40.8]} 17. Rdf1 {[%clk 0:01:47.1]} 17... Bh6 {[%clk 0:02:40.9]} 18.
Qe3 {[%clk 0:01:18.1]} 18... Rad8 {[%clk 0:02:26.9]} 19. Ne2 {[%clk 0:01:17.6]}
19... d4 {[%clk 0:02:05.8]} 20. Nxd4 {[%clk 0:00:58.3]} 20... Qd5 {[%clk
0:02:03.9]} 21. Nf3 {[%clk 0:00:48.5]} 21... Qxa2 {[%clk 0:02:01.7]} 22. Ba3
{[%clk 0:00:43.1]} 22... Nc4 {[%clk 0:02:00.1]} 0-1

[Event "*** Titled Tuesday 3|2 Blitz"]
[Site "Chess.com"]
[Date "2016.09.06"]
[Round "1"]
[White "Mastervlad8"]
[Black "tigra"]
[Result "0-1"]
[WhiteElo "2118"]
[BlackElo "2440"]
[TimeControl "180+2"]
[EndTime "11:05:35 PDT"]
[Termination "tigra won by resignation"]

1. e4 {[%clk 0:02:47.3]} 1... c5 {[%clk 0:02:58.6]} 2. Nf3 {[%clk 0:02:47.4]}
2... g6 {[%clk 0:02:56.2]} 3. d4 {[%clk 0:02:47.9]} 3... cxd4 {[%clk 0:02:55.2]}
4. Nxd4 {[%clk 0:02:49.4]} 4... Nc6 {[%clk 0:02:52.6]} 5. Nc3 {[%clk 0:02:49]}
5... Bg7 {[%clk 0:02:52.6]} 6. Be3 {[%clk 0:02:49.9]} 6... Nf6 {[%clk 0:02:53]}
7. Nxc6 {[%clk 0:02:50.7]} 7... bxc6 {[%clk 0:02:53.3]} 8. e5 {[%clk 0:02:51.8]}
8... Ng8 {[%clk 0:02:54.3]} 9. Bd4 {[%clk 0:02:52]} 9... Qa5 {[%clk 0:02:48.9]}
10. Bc4 {[%clk 0:02:50.9]} 10... Bxe5 {[%clk 0:02:46.4]} 11. O-O {[%clk
0:02:47.9]} 11... Nh6 {[%clk 0:02:40.9]} 12. Re1 {[%clk 0:02:44.4]} 12... f6
{[%clk 0:02:16.1]} 13. Bxe5 {[%clk 0:01:49.1]} 13... fxe5 {[%clk 0:02:15.1]} 14.
Qd2 {[%clk 0:01:43.9]} 14... Nf5 {[%clk 0:02:12.6]} 15. Qg5 {[%clk 0:01:29.1]}
15... Rb8 {[%clk 0:02:07.3]} 16. g4 {[%clk 0:01:17.7]} 16... Nd4 {[%clk
0:02:05.8]} 17. Kg2 {[%clk 0:01:08.9]} 17... d6 {[%clk 0:01:57.2]} 18. f4 {[%clk
0:01:03]} 18... Rxb2 {[%clk 0:01:50.1]} 19. fxe5 {[%clk 0:00:55.4]} 19... Rxc2+
{[%clk 0:01:44.2]} 20. Kh1 {[%clk 0:00:56.2]} 20... Rxh2+ {[%clk 0:01:32.2]} 0-1

[Event "*** Titled Tuesday 3|2 Blitz"]
[Site "Chess.com"]
[Date "2016.09.06"]
[Round "1"]
[White "DaPazz"]
[Black "Aygehovit1992"]
[Result "0-1"]
[WhiteElo "1905"]
[BlackElo "2407"]
[TimeControl "180+2"]
[EndTime "11:06:00 PDT"]
[Termination "Aygehovit1992 won by resignation"]

1. f4 {[%clk 0:02:24.5]} 1... d5 {[%clk 0:02:50.3]} 2. Nf3 {[%clk 0:02:18.2]}
2... g6 {[%clk 0:02:51]} 3. e3 {[%clk 0:02:17.9]} 3... Bg7 {[%clk 0:02:52.1]} 4.
Be2 {[%clk 0:02:19.5]} 4... c5 {[%clk 0:02:52.5]} 5. O-O {[%clk 0:02:21.1]} 5...
Nc6 {[%clk 0:02:53.8]} 6. Bb5 {[%clk 0:02:19.9]} 6... Bd7 {[%clk 0:02:52.5]} 7.
d3 {[%clk 0:02:17.8]} 7... Nh6 {[%clk 0:02:38.6]} 8. Bxc6 {[%clk 0:01:44.1]}
8... Bxc6 {[%clk 0:02:37.9]} 9. Ne5 {[%clk 0:01:39.5]} 9... Qc7 {[%clk
0:02:37.4]} 10. Nxc6 {[%clk 0:01:18.3]} 10... Qxc6 {[%clk 0:02:37.2]} 11. Nd2
{[%clk 0:01:19.9]} 11... Nf5 {[%clk 0:02:28.9]} 12. Qe2 {[%clk 0:01:14.9]} 12...
h5 {[%clk 0:02:28.7]} 13. e4 {[%clk 0:01:13.1]} 13... Bd4+ {[%clk 0:02:11.6]}
14. Kh1 {[%clk 0:01:09.9]} 14... Ne3 {[%clk 0:02:13]} 15. Rf3 {[%clk 0:00:59.9]}
15... Nxc2 {[%clk 0:02:12.2]} 16. exd5 {[%clk 0:00:56]} 16... Qxd5 {[%clk
0:02:11.3]} 17. Ne4 {[%clk 0:00:53.5]} 17... Nxa1 {[%clk 0:02:08.2]} 18. Be3
{[%clk 0:00:46.9]} 18... O-O-O {[%clk 0:02:03.4]} 19. Rf1 {[%clk 0:00:37.2]}
19... Qxa2 {[%clk 0:01:58.4]} 20. Bxd4 {[%clk 0:00:31.6]} 20... cxd4 {[%clk
0:01:56.5]} 21. Rc1+ {[%clk 0:00:28.4]} 21... Kb8 {[%clk 0:01:57.1]} 22. Nc5
{[%clk 0:00:27.3]} 22... Nb3 {[%clk 0:01:49.6]} 0-1

[Event "*** Titled Tuesday 3|2 Blitz"]
[Site "Chess.com"]
[Date "2016.09.06"]
[Round "1"]
[White "pKiLz5Rn9b"]
[Black "GremioPrudente"]
[Result "1-0"]
[WhiteElo "2432"]
[BlackElo "2052"]
[TimeControl "180+2"]
[EndTime "11:06:25 PDT"]
[Termination "pKiLz5Rn9b won on time"]

1. e4 {[%clk 0:03:01.9]} 1... e6 {[%clk 0:02:51.7]} 2. g3 {[%clk 0:03:00.8]}
2... d5 {[%clk 0:02:52.5]} 3. Bg2 {[%clk 0:03:01.5]} 3... dxe4 {[%clk
0:02:51.6]} 4. Bxe4 {[%clk 0:03:02.3]} 4... Nf6 {[%clk 0:02:53]} 5. Bg2 {[%clk
0:03:03.5]} 5... Be7 {[%clk 0:02:49.3]} 6. Nc3 {[%clk 0:03:04.5]} 6... O-O
{[%clk 0:02:50.5]} 7. Nge2 {[%clk 0:03:04.4]} 7... c6 {[%clk 0:02:46.6]} 8. O-O
{[%clk 0:03:03.5]} 8... e5 {[%clk 0:02:47.1]} 9. d4 {[%clk 0:03:04.5]} 9... exd4
{[%clk 0:02:44.8]} 10. Qxd4 {[%clk 0:03:05.6]} 10... Bf5 {[%clk 0:02:31.8]} 11.
Bg5 {[%clk 0:02:40.1]} 11... Bxc2 {[%clk 0:02:21.1]} 12. Rac1 {[%clk 0:02:41]}
12... Qxd4 {[%clk 0:02:13.3]} 13. Nxd4 {[%clk 0:02:42.9]} 13... Bg6 {[%clk
0:02:12.8]} 14. Rfe1 {[%clk 0:02:44.5]} 14... Bc5 {[%clk 0:02:03.8]} 15. Nb3
{[%clk 0:02:43.4]} 15... Bb4 {[%clk 0:01:57.5]} 16. a3 {[%clk 0:02:33.9]} 16...
Bxc3 {[%clk 0:01:57.5]} 17. Rxc3 {[%clk 0:02:35.8]} 17... Nbd7 {[%clk
0:01:53.3]} 18. Na5 {[%clk 0:02:36.7]} 18... h6 {[%clk 0:01:26.2]} 19. Bxf6
{[%clk 0:02:35.8]} 19... Nxf6 {[%clk 0:01:27.1]} 20. Nxb7 {[%clk 0:02:37.2]}
20... Rab8 {[%clk 0:01:13.4]} 21. Bxc6 {[%clk 0:02:37.6]} 21... Rfc8 {[%clk
0:01:14.1]} 22. Nd6 {[%clk 0:02:24.6]} 22... Rd8 {[%clk 0:00:55.1]} 23. Nc4
{[%clk 0:02:25.2]} 23... Rbc8 {[%clk 0:00:47.7]} 24. Ne5 {[%clk 0:02:26.2]}
24... Rb8 {[%clk 0:00:37]} 25. b4 {[%clk 0:02:26.5]} 25... a6 {[%clk 0:00:30.3]}
26. Nxg6 {[%clk 0:02:27.3]} 26... fxg6 {[%clk 0:00:30.8]} 27. Re7 {[%clk
0:02:28.8]} 27... Kh7 {[%clk 0:00:22.7]} 28. Bf3 {[%clk 0:02:26.1]} 28... Rbc8
{[%clk 0:00:22.1]} 29. Rxc8 {[%clk 0:02:26.2]} 29... Rxc8 {[%clk 0:00:23.2]} 30.
Ra7 {[%clk 0:02:27.9]} 30... Rc3 {[%clk 0:00:19.3]} 31. Bb7 {[%clk 0:02:28.5]}
31... Rxa3 {[%clk 0:00:19.6]} 32. Bxa6 {[%clk 0:02:27.8]} 32... Nd5 {[%clk
0:00:18.1]} 33. b5 {[%clk 0:02:28.8]} 33... Nc7 {[%clk 0:00:16.2]} 34. Rxc7
{[%clk 0:02:29.2]} 34... g5 {[%clk 0:00:12.5]} 35. Kg2 {[%clk 0:02:30.2]} 35...
Kg6 {[%clk 0:00:13.4]} 36. Bc8 {[%clk 0:02:31.4]} 36... h5 {[%clk 0:00:13.9]}
37. b6 {[%clk 0:02:32.2]} 1-0

[Event "*** Titled Tuesday 3|2 Blitz"]
[Site "Chess.com"]
[Date "2016.09.06"]
[Round "1"]
[White "Quiet_Desperation"]
[Black "Lapitch"]
[Result "0-1"]
[WhiteElo "2255"]
[BlackElo "2541"]
[TimeControl "180+2"]
[EndTime "11:07:02 PDT"]
[Termination "Lapitch won by resignation"]

1. e4 {[%clk 0:03:00.7]} 1... Nf6 {[%clk 0:02:58.3]} 2. Nc3 {[%clk 0:02:52.2]}
2... e5 {[%clk 0:02:57.7]} 3. Nf3 {[%clk 0:02:51.6]} 3... Nc6 {[%clk 0:02:58]}
4. Bb5 {[%clk 0:02:45.3]} 4... Bc5 {[%clk 0:02:57.9]} 5. O-O {[%clk 0:02:45.4]}
5... Nd4 {[%clk 0:02:56.8]} 6. Bc4 {[%clk 0:02:29.8]} 6... d6 {[%clk 0:02:49.9]}
7. h3 {[%clk 0:02:30.2]} 7... O-O {[%clk 0:02:43.7]} 8. d3 {[%clk 0:02:23.9]}
8... c6 {[%clk 0:02:44.6]} 9. Nxd4 {[%clk 0:02:21.5]} 9... Bxd4 {[%clk
0:02:43.2]} 10. Bg5 {[%clk 0:02:15.3]} 10... h6 {[%clk 0:02:41.4]} 11. Bh4
{[%clk 0:02:15.4]} 11... Be6 {[%clk 0:02:34.3]} 12. Bb3 {[%clk 0:01:49.8]} 12...
a5 {[%clk 0:02:30]} 13. a3 {[%clk 0:01:45.5]} 13... Bxb3 {[%clk 0:02:26.8]} 14.
cxb3 {[%clk 0:01:46.2]} 14... Qe7 {[%clk 0:02:27.4]} 15. Kh1 {[%clk 0:01:44.7]}
15... g5 {[%clk 0:02:27.1]} 16. Bg3 {[%clk 0:01:45.3]} 16... Qe6 {[%clk
0:02:28.7]} 17. Rb1 {[%clk 0:01:43.3]} 17... d5 {[%clk 0:01:43.7]} 18. exd5
{[%clk 0:01:28.9]} 18... Nxd5 {[%clk 0:01:43.4]} 19. Ne4 {[%clk 0:01:25.8]}
19... f5 {[%clk 0:01:40.4]} 20. Nd2 {[%clk 0:01:22.9]} 20... Rad8 {[%clk
0:01:27.2]} 21. Nc4 {[%clk 0:01:16.7]} 21... f4 {[%clk 0:01:16.5]} 22. Bh2
{[%clk 0:01:16.1]} 22... f3 {[%clk 0:01:17.5]} 23. g4 {[%clk 0:00:58.9]} 23...
h5 {[%clk 0:01:15.1]} 24. Qd2 {[%clk 0:00:57]} 24... Nf4 {[%clk 0:01:13.7]} 25.
Bxf4 {[%clk 0:00:54.6]} 25... Rxf4 {[%clk 0:01:12.2]} 26. Rg1 {[%clk 0:00:40]}
26... hxg4 {[%clk 0:01:10.9]} 27. Ne3 {[%clk 0:00:34.1]} 27... Kf7 {[%clk
0:00:59.8]} 28. Nxg4 {[%clk 0:00:26.6]} 28... Rh8 {[%clk 0:00:57.6]} 29. Rg3
{[%clk 0:00:20.7]} 29... Rxg4 {[%clk 0:00:56]} 30. Rxf3+ {[%clk 0:00:22.2]}
30... Rf4 {[%clk 0:00:55.8]} 0-1

[Event "*** Titled Tuesday 3|2 Blitz"]
[Site "Chess.com"]
[Date "2016.09.06"]
[Round "1"]
[White "WinnieTPooh"]
[Black "pedromartinez91"]
[Result "1-0"]
[WhiteElo "1830"]
[BlackElo "2390"]
[TimeControl "180+2"]
[EndTime "11:07:07 PDT"]
[Termination "WinnieTPooh won by checkmate"]

1. d4 {[%clk 0:03:00.7]} 1... d5 {[%clk 0:02:55.2]} 2. c4 {[%clk 0:03:01.8]}
2... e6 {[%clk 0:02:55.6]} 3. Nf3 {[%clk 0:03:03.2]} 3... Be7 {[%clk 0:02:56.2]}
4. g3 {[%clk 0:03:04.6]} 4... Nf6 {[%clk 0:02:56.4]} 5. Bg2 {[%clk 0:03:06]}
5... O-O {[%clk 0:02:57.7]} 6. O-O {[%clk 0:03:07.3]} 6... dxc4 {[%clk
0:02:59.1]} 7. Na3 {[%clk 0:03:08.5]} 7... Bxa3 {[%clk 0:02:53.6]} 8. bxa3
{[%clk 0:03:10.4]} 8... b5 {[%clk 0:02:44.2]} 9. a4 {[%clk 0:03:10.8]} 9... a6
{[%clk 0:02:34.1]} 10. Ba3 {[%clk 0:03:09.7]} 10... Re8 {[%clk 0:02:32.2]} 11.
Ne5 {[%clk 0:03:04.1]} 11... Nd5 {[%clk 0:02:31.9]} 12. e4 {[%clk 0:03:02.7]}
12... Nc3 {[%clk 0:02:30.8]} 13. Qh5 {[%clk 0:02:46.9]} 13... Nxa4 {[%clk
0:02:01.9]} 14. Qxf7+ {[%clk 0:02:46.5]} 14... Kh8 {[%clk 0:02:00.1]} 15. Qh5
{[%clk 0:02:28.1]} 15... Kg8 {[%clk 0:01:46]} 16. Qf7+ {[%clk 0:02:25.3]} 16...
Kh8 {[%clk 0:01:46.1]} 17. Rad1 {[%clk 0:01:18.5]} 17... Nc3 {[%clk 0:01:42]}
18. Rd2 {[%clk 0:01:18.7]} 18... Bd7 {[%clk 0:01:37.2]} 19. f4 {[%clk
0:00:51.6]} 19... Qf6 {[%clk 0:01:34.8]} 20. Qh5 {[%clk 0:00:44.9]} 20... Kg8
{[%clk 0:01:26.2]} 21. d5 {[%clk 0:00:35.7]} 21... g6 {[%clk 0:01:25.2]} 22. Qh6
{[%clk 0:00:26.9]} 22... exd5 {[%clk 0:01:17.5]} 23. exd5 {[%clk 0:00:27.8]}
23... b4 {[%clk 0:01:09.6]} 24. Bxb4 {[%clk 0:00:28]} 24... Qb6+ {[%clk
0:01:09.2]} 25. Kh1 {[%clk 0:00:22.4]} 25... Qxb4 {[%clk 0:01:10]} 26. Nxg6
{[%clk 0:00:23.2]} 26... Qd6 {[%clk 0:01:10.5]} 27. f5 {[%clk 0:00:15.5]} 27...
Ne4 {[%clk 0:01:05.4]} 28. Bxe4 {[%clk 0:00:12.9]} 28... Rxe4 {[%clk 0:01:06.1]}
29. f6 {[%clk 0:00:14.4]} 29... Be8 {[%clk 0:01:04]} 30. Qg7# {[%clk 0:00:15.4]}
1-0